bitfinex-derivatives/quotes_BTCF0:USTF0_20241208
["timestamp","ask_amount","ask_price","bid_price","bid_amount"]
[1733683192421,0.415864,99801.0,99800.0,0.00109924]
[1733683193016,0.045071,99787.0,99786.0,0.01]
[1733683193218,0.045073,99782.0,99781.0,0.0331]
[1733683195417,0.045073,99782.0,99781.0,0.079173]
[1733683196017,0.045073,99782.0,99781.0,0.080173]
[1733683202723,0.13465088,99782.0,99781.0,0.080173]
[1733683203118,0.045073,99782.0,99781.0,0.080173]
[1733683207227,0.19438323,99782.0,99781.0,0.080173]
[1733683208130,0.045073,99782.0,99781.0,0.080173]
[1733683209327,0.09379001,99782.0,99781.0,0.080173]
[1733683210035,0.045073,99782.0,99781.0,0.080173]
[1733683210329,0.19477188,99782.0,99781.0,0.080173]
[1733683210631,0.09379001,99782.0,99781.0,0.080173]
[1733683210835,0.045073,99782.0,99781.0,0.080173]
[1733683216239,0.045073,99782.0,99781.0,0.32045261]
[1733683217832,0.22468032,99782.0,99781.0,0.080173]
[1733683218031,0.27339733,99782.0,99781.0,0.080173]
[1733683219144,0.09379001,99782.0,99781.0,0.080173]
[1733683219337,0.04871701,99782.0,99781.0,0.440973]
[1733683219540,0.04871701,99782.0,99781.0,0.74090029]
[1733683219741,0.14982028,99784.0,99781.0,0.56059357]
[1733683220038,0.14982028,99785.0,99782.0,0.0324]
[1733683220228,0.14982028,99785.0,99784.0,0.045072]
[1733683220429,0.14982028,99785.0,99784.0,0.0644736]
[1733683220638,0.14982028,99786.0,99785.0,0.045072]
[1733683220945,0.14982028,99786.0,99785.0,0.0644736]
[1733683221745,0.14982028,99787.0,99786.0,0.045071]
[1733683221939,0.14982028,99787.0,99786.0,0.078171]
[1733683222137,0.19845153,99787.0,99786.0,0.078171]
[1733683222336,0.22484854,99792.0,99791.0,0.045069]
[1733683222641,0.09378178,99792.0,99791.0,0.045069]
[1733683223635,0.09478178,99792.0,99791.0,0.045069]
[1733683225235,0.09778178,99792.0,99791.0,0.045069]
[1733683225841,0.049069,99792.0,99791.0,0.045069]
[1733683226644,0.049069,99792.0,99791.0,0.2252512]
[1733683227141,0.049069,99792.0,99791.0,0.045069]
[1733683229549,0.049069,99792.0,99791.0,0.22522856]
[1733683231746,0.049069,99792.0,99791.0,0.64614861]
[1733683231945,0.004,99792.0,99791.0,0.405869]
[1733683232248,0.004,99792.0,99791.0,0.42513132]
[1733683236065,0.004,99792.0,99791.0,0.405869]
[1733683236565,0.12358483,99792.0,99791.0,0.405869]
[1733683236756,0.12358483,99792.0,99791.0,0.41606875]
[1733683236960,0.004,99792.0,99791.0,0.41606875]
[1733683237564,0.12358829,99792.0,99791.0,0.41606875]
[1733683240970,0.004,99792.0,99791.0,0.41606875]
[1733683241966,0.004,99792.0,99791.0,0.51627768]
[1733683242170,0.004,99792.0,99791.0,0.82496373]
[1733683242472,0.01,99803.0,99802.0,0.045064]
[1733683242770,8.497e-05,99810.0,99809.0,0.045061]
[1733683243172,8.497e-05,99810.0,99809.0,0.06407425]
[1733683243363,8.497e-05,99810.0,99809.0,0.045061]
[1733683243759,8.497e-05,99810.0,99809.0,0.22497858]
[1733683244172,8.497e-05,99810.0,99809.0,0.045061]
[1733683244566,0.00708497,99810.0,99809.0,0.046061]
[1733683245960,0.00908497,99810.0,99809.0,0.046061]
[1733683246368,0.05414497,99810.0,99809.0,0.001]
[1733683246572,0.1438268,99810.0,99809.0,0.001]
[1733683246768,0.05414497,99810.0,99809.0,0.001]
[1733683247869,0.17373326,99810.0,99809.0,0.001]
[1733683248475,0.05414497,99810.0,99809.0,0.001]
[1733683253577,0.20382743,99810.0,99809.0,0.001]
[1733683255774,0.1028529,99810.0,99809.0,0.001]
[1733683257688,0.10285281,99810.0,99809.0,0.001]
[1733683258078,0.46365281,99810.0,99809.0,0.001]
[1733683261292,0.46365281,99810.0,99797.0,0.01]
[1733683261293,0.045066,99798.0,99797.0,0.01]
[1733683261484,0.045066,99798.0,99786.0,0.107971]
[1733683261485,0.04507,99788.0,99786.0,0.107971]
[1733683262381,0.04507,99788.0,99786.0,0.076571]
[1733683262581,0.045073,99781.0,99780.0,0.36172]
[1733683262795,0.045073,99781.0,99780.0,0.38004213]
[1733683263089,0.16466428,99781.0,99780.0,0.3608]
[1733683263293,0.045073,99781.0,99779.0,0.045074]
[1733683263879,0.045073,99781.0,99779.0,0.28502058]
[1733683264080,0.08967116,99787.0,99785.0,0.045072]
[1733683264283,0.04507,99789.0,99787.0,0.045071]
[1733683264284,0.04507,99788.0,99787.0,0.045071]
[1733683264489,0.04507,99788.0,99787.0,0.22515212]
[1733683265282,0.04507,99788.0,99787.0,0.18008112]
[1733683265485,0.04507,99788.0,99786.0,0.18008112]
[1733683267192,0.04607,99788.0,99786.0,0.18008112]
[1733683267398,0.001,99788.0,99786.0,0.22515212]
[1733683267694,0.08967116,99795.0,99793.0,0.045068]
[1733683267889,0.08967116,99795.0,99787.0,0.0302]
[1733683267890,0.08967116,99796.0,99795.0,0.045067]
[1733683268092,0.08967116,99796.0,99795.0,0.078067]
[1733683268287,0.045064,99803.0,99795.0,0.078067]
[1733683268288,0.08967116,99801.0,99798.0,0.045066]
[1733683268488,0.08967116,99801.0,99799.0,0.00313172]
[1733683268888,0.08967116,99801.0,99800.0,0.00313172]
[1733683270395,0.09667116,99801.0,99800.0,0.00413172]
[1733683270888,0.007,99801.0,99800.0,0.00413172]
[1733683271084,0.009,99801.0,99800.0,0.00413172]
[1733683273494,0.15851118,99801.0,99800.0,0.00413172]
[1733683273688,0.15851118,99801.0,99800.0,0.001]
[1733683273887,0.15851118,99801.0,99800.0,0.00413162]
[1733683274189,0.15851118,99801.0,99800.0,0.001]
[1733683274388,0.15851118,99801.0,99800.0,0.00413163]
[1733683275599,0.009,99801.0,99800.0,0.00413163]
[1733683276402,0.05770792,99801.0,99800.0,0.00413163]
[1733683277302,0.05770785,99801.0,99800.0,0.00413163]
[1733683277900,0.009,99801.0,99800.0,0.00413163]
[1733683281195,0.009,99801.0,99800.0,0.00413164]
[1733683281802,0.009,99801.0,99800.0,0.18411206]
[1733683283809,0.009,99801.0,99800.0,0.00413164]
[1733683284207,0.009,99801.0,99800.0,0.18411206]
[1733683284402,0.009,99801.0,99800.0,0.18098042]
[1733683285504,0.009,99801.0,99800.0,0.00099998]
[1733683285709,0.009,99801.0,99800.0,0.18113317]
[1733683286004,0.05770799,99801.0,99800.0,0.00099998]
[1733683291505,0.05770799,99801.0,99800.0,0.04606498]
[1733683291708,0.009,99801.0,99800.0,0.04606498]
[1733683292014,0.05770802,99801.0,99800.0,0.04606498]
[1733683293011,0.009,99801.0,99800.0,0.22619817]
[1733683293516,0.009,99801.0,99800.0,0.04606498]
[1733683294518,0.12862766,99801.0,99800.0,0.04606498]
[1733683295114,0.17372544,99801.0,99800.0,0.04606498]
[1733683295713,0.12866144,99801.0,99800.0,0.04606498]
[1733683296011,0.12866141,99801.0,99800.0,0.04606498]
[1733683296514,0.00899997,99801.0,99800.0,0.04606498]
[1733683300921,0.05770803,99801.0,99800.0,0.04606498]
[1733683301617,0.10277203,99801.0,99800.0,0.04606498]
[1733683302216,0.05406397,99801.0,99800.0,0.00099998]
[1733683302407,0.04507,99788.0,99787.0,0.19037662]
[1733683302613,0.045073,99783.0,99782.0,0.13760529]
[1733683302821,0.09378106,99783.0,99782.0,0.13760529]
[1733683304218,0.09378106,99783.0,99782.0,0.046073]
[1733683305315,0.09378106,99783.0,99782.0,0.047073]
[1733683305525,0.045073,99783.0,99782.0,0.047073]
[1733683306021,0.045073,99783.0,99782.0,0.002]
[1733683306022,0.63391195,99783.0,99782.0,0.002]
[1733683306210,0.45459125,99783.0,99782.0,0.002]
[1733683306410,0.46466983,99783.0,99782.0,0.002]
[1733683306618,0.64375965,99783.0,99782.0,0.002]
[1733683306822,0.46466983,99783.0,99782.0,0.002]
[1733683307916,0.41595158,99783.0,99782.0,0.002]
[1733683309321,0.045078,99771.0,99770.0,0.01]
[1733683309526,0.045078,99771.0,99767.0,0.00150337]
[1733683309527,0.045079,99768.0,99767.0,0.00150337]
[1733683310920,0.046079,99768.0,99767.0,0.00850337]
[1733683312224,0.046079,99768.0,99767.0,0.01250337]
[1733683312528,0.046079,99768.0,99767.0,0.011]
[1733683312727,0.0562614,99768.0,99767.0,0.011]
[1733683313222,0.1175614,99768.0,99767.0,0.004]
[1733683313421,0.1175614,99768.0,99767.0,0.009]
[1733683314328,0.1175614,99768.0,99767.0,0.008]
[1733683319023,0.4783614,99768.0,99767.0,0.008]
[1733683320525,0.4160614,99768.0,99767.0,0.008]
[1733683320724,0.4160614,99768.0,99767.0,0.05308]
[1733683321633,0.405879,99768.0,99767.0,0.05308]
[1733683322928,0.045079,99768.0,99767.0,0.05308]
[1733683330538,0.13450605,99768.0,99767.0,0.05308]
[1733683331044,0.045079,99768.0,99767.0,0.05308]
[1733683332836,0.0101668,99771.0,99770.0,0.045078]
[1733683332837,0.0552448,99771.0,99770.0,0.045078]
[1733683333445,0.14467185,99771.0,99770.0,0.045078]
[1733683334038,0.14467185,99771.0,99770.0,0.047078]
[1733683334435,0.0552448,99771.0,99770.0,0.047078]
[1733683334636,0.0552448,99771.0,99770.0,0.051078]
[1733683338641,0.48003606,99774.0,99773.0,0.045077]
[1733683338943,0.3608,99774.0,99773.0,0.22545362]
[1733683339245,0.08961552,99779.0,99773.0,0.24050216]
[1733683339446,0.08961552,99781.0,99779.0,0.045074]
[1733683339751,0.08961552,99792.0,99780.0,0.3834484]
[1733683339938,0.13468352,99794.0,99789.0,0.3608]
[1733683340138,0.045068,99794.0,99793.0,0.045068]
[1733683341147,0.05530776,99794.0,99793.0,0.045068]
[1733683341843,0.06130776,99794.0,99793.0,0.045068]
[1733683342655,0.06330776,99794.0,99793.0,0.045068]
[1733683345450,0.01823976,99794.0,99793.0,0.045068]
[1733683347155,0.008,99794.0,99793.0,0.045068]
[1733683358759,0.053068,99794.0,99793.0,0.045068]
[1733683362860,0.008,99794.0,99793.0,0.045068]
[1733683364662,0.12731815,99794.0,99793.0,0.06417082]
[1733683364863,0.09749108,99794.0,99793.0,0.06417082]
[1733683365067,0.008,99794.0,99793.0,0.06417082]
[1733683365262,0.09749108,99794.0,99793.0,0.06417082]
[1733683365471,0.008,99794.0,99793.0,0.06417082]
[1733683365765,0.008,99794.0,99793.0,0.16437774]
[1733683365968,0.008,99794.0,99793.0,0.17426721]
[1733683368066,0.008,99794.0,99793.0,0.46400355]
[1733683368670,0.08950462,99812.0,99809.0,0.045061]
[1733683368974,8.497e-05,99810.0,99809.0,0.22508141]
[1733683369168,8.497e-05,99810.0,99809.0,0.405861]
[1733683369366,8.497e-05,99810.0,99809.0,0.58588141]
[1733683369567,8.497e-05,99810.0,99809.0,0.405861]
[1733683369967,0.00408497,99810.0,99809.0,0.405861]
[1733683370269,0.00408497,99810.0,99809.0,0.58584345]
[1733683370864,0.00908497,99810.0,99809.0,0.58684345]
[1733683371371,0.00908497,99810.0,99809.0,0.406861]
[1733683371565,0.00908497,99810.0,99809.0,0.58684345]
[1733683372271,0.00908497,99810.0,99809.0,0.41685213]
[1733683378474,0.00908497,99810.0,99809.0,0.51704299]
[1733683379069,0.09855883,99810.0,99809.0,0.53594631]
[1733683379272,0.00908497,99810.0,99809.0,0.53594631]
[1733683382077,0.00908497,99810.0,99809.0,0.51704299]
[1733683382273,0.00908497,99810.0,99809.0,0.53587337]
[1733683384181,0.00908497,99810.0,99809.0,0.77543465]
[1733683384378,0.01,99828.0,99809.0,0.72937872]
[1733683384583,0.17900565,99847.0,99809.0,0.72937872]
[1733683384584,0.08947386,99835.0,99823.0,0.045055]
[1733683384784,0.36132001,99836.0,99834.0,0.04505]
[1733683384982,0.3608,99836.0,99835.0,0.045049]
[1733683386082,0.3628,99836.0,99835.0,0.045049]
[1733683387081,0.002,99836.0,99835.0,0.045049]
[1733683387381,0.002,99836.0,99835.0,0.14521377]
[1733683388177,0.002,99836.0,99835.0,0.15523508]
[1733683389185,0.002,99836.0,99835.0,0.33490976]
[1733683389388,0.002,99836.0,99835.0,0.15523508]
[1733683397591,0.002,99836.0,99835.0,0.87683508]
[1733683401998,0.002,99836.0,99835.0,0.15523508]
[1733683402193,0.002,99836.0,99835.0,0.87683508]
[1733683405996,0.002,99836.0,99835.0,0.15523508]
[1733683406195,0.002,99836.0,99835.0,1.11640143]
[1733683406395,0.002,99836.0,99835.0,0.87683508]
[1733683406700,0.002,99836.0,99835.0,1.11640143]
[1733683407001,0.002,99836.0,99835.0,0.87683508]
[1733683407399,0.002,99836.0,99835.0,1.11640143]
[1733683407594,0.002,99836.0,99835.0,0.87683508]
[1733683408490,0.00010999,99850.0,99849.0,0.045043]
[1733683408689,0.00010999,99850.0,99849.0,0.405843]
[1733683408897,0.00010999,99850.0,99849.0,0.58552501]
[1733683409098,0.00010999,99850.0,99849.0,0.50599372]
[1733683409600,0.00010999,99850.0,99849.0,0.68569816]
[1733683410097,0.00110999,99850.0,99849.0,0.50699372]
[1733683411588,0.00010999,99850.0,99849.0,0.50599372]
[1733683411789,0.00110999,99850.0,99849.0,0.50699372]
[1733683412194,0.04615199,99850.0,99849.0,0.406843]
[1733683412398,0.04615199,99850.0,99849.0,0.046043]
[1733683413292,0.22532223,99850.0,99849.0,0.046043]
[1733683413495,0.0948356,99850.0,99849.0,0.046043]
[1733683416198,0.04615199,99850.0,99849.0,0.046043]
[1733683416706,0.59288971,99850.0,99849.0,0.046043]
[1733683417607,0.60276478,99850.0,99849.0,0.046043]
[1733683419502,0.60279889,99850.0,99849.0,0.046043]
[1733683419911,0.045047,99842.0,99841.0,0.045046]
[1733683420304,0.09373175,99842.0,99841.0,0.045046]
[1733683420606,0.045047,99842.0,99841.0,0.045046]
[1733683420997,0.23090552,99842.0,99841.0,0.045046]
[1733683421203,0.045047,99842.0,99841.0,0.22510862]
[1733683421500,0.046047,99842.0,99841.0,0.22510862]
[1733683421810,0.046047,99842.0,99841.0,0.045046]
[1733683422609,0.046047,99842.0,99841.0,0.22509025]
[1733683422803,0.046047,99842.0,99841.0,0.045046]
[1733683423206,0.046047,99842.0,99841.0,0.22509179]
[1733683424403,0.046047,99842.0,99841.0,0.045046]
[1733683424612,0.13574518,99842.0,99841.0,0.22509179]
[1733683425905,0.046047,99842.0,99841.0,0.22509179]
[1733683427214,0.046047,99842.0,99841.0,0.045046]
[1733683427604,0.13574518,99842.0,99841.0,0.045046]
[1733683427799,0.046047,99842.0,99841.0,0.045046]
[1733683428305,0.046047,99842.0,99841.0,0.2250161]
[1733683428510,0.046047,99842.0,99841.0,0.22501609]
[1733683428907,0.046047,99842.0,99841.0,0.045046]
[1733683429406,0.046047,99842.0,99841.0,0.22500845]
[1733683431507,0.046047,99842.0,99841.0,0.045046]
[1733683431703,0.046047,99842.0,99841.0,0.22499361]
[1733683433013,0.046047,99842.0,99841.0,0.045046]
[1733683433509,0.046047,99842.0,99841.0,0.22499361]
[1733683433813,0.046047,99842.0,99841.0,0.045046]
[1733683436311,0.09473577,99842.0,99841.0,0.045046]
[1733683438113,0.09473533,99842.0,99841.0,0.045046]
[1733683439307,0.27420459,99842.0,99841.0,0.045046]
[1733683439513,0.09473533,99842.0,99841.0,0.045046]
[1733683439709,0.27420459,99842.0,99841.0,0.045046]
[1733683440215,0.09473533,99842.0,99841.0,0.045046]
[1733683442412,0.09473365,99842.0,99831.0,0.01026438]
[1733683442619,0.045048,99838.0,99837.0,0.3608]
[1733683442817,0.045048,99838.0,99837.0,0.405848]
[1733683443009,0.045048,99838.0,99837.0,0.045048]
[1733683443209,0.27320087,99838.0,99837.0,0.045048]
[1733683443415,0.045048,99838.0,99837.0,0.045048]
[1733683443911,0.045048,99838.0,99837.0,0.405848]
[1733683444918,0.045048,99838.0,99837.0,0.045048]
[1733683445212,0.045048,99838.0,99837.0,0.405848]
[1733683445618,0.047048,99838.0,99837.0,0.405848]
[1733683449318,0.16670059,99838.0,99837.0,0.405848]
[1733683449515,0.05531277,99838.0,99837.0,0.405848]
[1733683449817,0.05731277,99838.0,99837.0,0.405848]
[1733683450215,0.05731277,99838.0,99837.0,0.045048]
[1733683451520,0.10600139,99838.0,99837.0,0.045048]
[1733683451923,0.24180016,99838.0,99837.0,0.045048]
[1733683452220,0.10600139,99838.0,99837.0,0.045048]
[1733683455518,0.05531277,99838.0,99837.0,0.045048]
[1733683455720,0.05731277,99838.0,99837.0,0.045048]
[1733683455915,0.10600139,99838.0,99837.0,0.045048]
[1733683456115,0.10400139,99838.0,99837.0,0.045048]
[1733683456317,0.10600139,99838.0,99837.0,0.045048]
[1733683458524,0.05731277,99838.0,99837.0,0.045048]
[1733683458721,0.05531277,99838.0,99837.0,0.045048]
[1733683458929,0.05731277,99838.0,99837.0,0.28540221]
[1733683459827,0.05731277,99838.0,99837.0,0.045048]
[1733683461731,0.05531277,99838.0,99837.0,0.045048]
[1733683461931,0.05731277,99838.0,99837.0,0.28540221]
[1733683462233,0.05731277,99838.0,99837.0,0.045048]
[1733683463726,0.05731277,99838.0,99837.0,0.28540221]
[1733683464126,0.05731277,99838.0,99837.0,0.045048]
[1733683465233,0.05731277,99838.0,99837.0,0.28540221]
[1733683465430,0.10600198,99838.0,99837.0,0.045048]
[1733683465830,0.06095398,99838.0,99830.0,0.01010963]
[1733683466034,0.045051,99833.0,99832.0,0.04505]
[1733683466829,0.045051,99833.0,99832.0,0.14521627]
[1733683467031,0.09373999,99833.0,99832.0,0.14521627]
[1733683468436,0.09573999,99833.0,99832.0,0.14521627]
[1733683471931,0.09573955,99833.0,99832.0,0.14521627]
[1733683472130,0.27547588,99833.0,99832.0,0.14521627]
[1733683472527,0.09573955,99833.0,99832.0,0.14521627]
[1733683473531,0.16688917,99833.0,99832.0,0.14521627]
[1733683474532,0.047051,99833.0,99832.0,0.14521627]
[1733683474831,0.16688557,99833.0,99832.0,0.14521627]
[1733683475040,0.047051,99833.0,99832.0,0.14521627]
[1733683475935,0.16688861,99833.0,99832.0,0.14521627]
[1733683476834,0.047051,99833.0,99832.0,0.14521627]
[1733683477035,0.047051,99833.0,99832.0,0.44525029]
[1733683479748,0.047051,99833.0,99832.0,1.09515319]
[1733683480844,0.13692801,99833.0,99832.0,0.79511917]
[1733683481443,0.13692801,99833.0,99832.0,0.79517089]
[1733683481648,0.09187701,99833.0,99832.0,0.81390228]
[1733683483931,0.08987701,99833.0,99832.0,0.81390228]
[1733683484133,0.09187701,99833.0,99832.0,0.81390228]
[1733683486543,0.09187701,99833.0,99832.0,0.45305961]
[1733683486742,0.002,99833.0,99832.0,0.81385961]
[1733683487945,0.09187701,99833.0,99832.0,0.81385961]
[1733683488146,0.002,99833.0,99832.0,0.81385961]
[1733683488645,0.12183761,99833.0,99832.0,0.52474766]
[1733683488944,0.002,99833.0,99832.0,0.52474766]
[1733683489161,0.12183761,99833.0,99832.0,0.52474766]
[1733683489333,0.002,99833.0,99832.0,0.52474766]
[1733683489537,0.12183761,99833.0,99832.0,0.50601627]
[1733683492639,0.002,99833.0,99832.0,0.50601627]
[1733683493039,0.12183761,99833.0,99832.0,0.50601627]
[1733683494035,0.002,99833.0,99832.0,0.52471719]
[1733683494236,1.7e-07,99839.0,99832.0,1.09363858]
[1733683494447,0.01,99855.0,99849.0,0.045043]
[1733683494662,0.14979772,99858.0,99849.0,0.64598818]
[1733683494948,0.14979772,99860.0,99849.0,0.405843]
[1733683495157,0.14979772,99861.0,99849.0,0.50601078]
[1733683495346,0.14979772,99863.0,99849.0,0.50601078]
[1733683495540,0.00410999,99850.0,99849.0,0.79767711]
[1733683496248,0.00410999,99850.0,99849.0,0.79768835]
[1733683496842,0.00410999,99850.0,99849.0,1.09760029]
[1733683497047,0.00410999,99850.0,99849.0,0.79768835]
[1733683497242,0.00410999,99850.0,99849.0,0.80751987]
[1733683497445,0.00410999,99850.0,99849.0,0.80764013]
[1733683498542,0.00410999,99850.0,99849.0,1.1072932]
[1733683498941,0.00410999,99850.0,99849.0,0.81661472]
[1733683499348,0.00410999,99850.0,99849.0,0.5168423]
[1733683501443,0.00410999,99850.0,99849.0,0.81661472]
[1733683501751,0.00410999,99850.0,99849.0,0.5168423]
[1733683507546,0.00410999,99850.0,99849.0,0.53707098]
[1733683514449,0.00410999,99850.0,99849.0,0.5168423]
[1733683522445,0.00410999,99850.0,99849.0,0.81651215]
[1733683523255,0.00410999,99850.0,99849.0,1.10880967]
[1733683523555,0.00410999,99850.0,99849.0,0.80913982]
[1733683525355,0.00410999,99850.0,99849.0,1.16906206]
[1733683525561,0.00410999,99850.0,99849.0,0.5168423]
[1733683526059,0.00410999,99850.0,99849.0,1.10898002]
[1733683526257,0.00410999,99850.0,99849.0,0.81719255]
[1733683526551,0.00410999,99850.0,99849.0,0.5168423]
[1733683533267,0.00410999,99850.0,99849.0,0.5794329]
[1733683533758,0.00410999,99850.0,99849.0,1.21754614]
[1733683537751,0.00410999,99850.0,99849.0,1.25259532]
[1733683538062,0.031,99874.0,99867.0,0.045035]
[1733683538252,0.031,99874.0,99873.0,0.045032]
[1733683538453,0.031,99874.0,99873.0,0.33309738]
[1733683538666,0.031,99874.0,99873.0,0.14516467]
[1733683539769,0.031,99874.0,99873.0,0.14616467]
[1733683541159,0.031,99874.0,99873.0,0.15609916]
[1733683542159,0.031,99874.0,99873.0,0.15509916]
[1733683543366,0.031,99874.0,99867.0,0.36172]
[1733683543567,0.031,99874.0,99859.0,0.01]
[1733683543568,0.14979772,99872.0,99859.0,0.01]
[1733683543871,0.07967061,99874.0,99870.0,0.045033]
[1733683543872,0.14979772,99871.0,99870.0,0.045033]
[1733683545164,0.045032,99873.0,99870.0,0.045033]
[1733683545358,0.045033,99871.0,99870.0,0.045033]
[1733683545564,0.09370546,99871.0,99870.0,0.045033]
[1733683546773,0.0937056,99871.0,99870.0,0.045033]
[1733683547470,0.22840893,99871.0,99857.0,0.01]
[1733683547669,0.19454571,99860.0,99859.0,0.045038]
[1733683547867,0.04867899,99860.0,99847.0,0.00150208]
[1733683548172,0.045043,99849.0,99848.0,0.405843]
[1733683548369,0.045043,99849.0,99848.0,0.045043]
[1733683549160,0.045043,99849.0,99847.0,0.00150208]
[1733683549366,0.045045,99844.0,99843.0,0.045045]
[1733683550571,0.045048,99839.0,99837.0,0.406768]
[1733683550880,0.031,99838.0,99837.0,0.3608]
[1733683551069,0.0628,99838.0,99837.0,0.3608]
[1733683552476,0.0946,99838.0,99837.0,0.3608]
[1733683552868,0.0976,99838.0,99837.0,0.3608]
[1733683553675,0.045048,99837.0,99834.0,0.405849]
[1733683553872,0.0976,99838.0,99834.0,0.405849]
[1733683554768,0.045049,99835.0,99834.0,0.405849]
[1733683555567,0.045049,99835.0,99834.0,0.045049]
[1733683555769,0.045049,99835.0,99834.0,0.405849]
[1733683556073,0.047049,99835.0,99834.0,0.405849]
[1733683557177,0.048049,99835.0,99834.0,0.405849]
[1733683558272,0.048049,99835.0,99834.0,0.045049]
[1733683558472,0.048049,99835.0,99834.0,0.405849]
[1733683558672,0.045049,99835.0,99834.0,0.405849]
[1733683558873,0.047049,99835.0,99834.0,0.405849]
[1733683559675,0.047049,99835.0,99834.0,0.045049]
[1733683559874,0.047049,99835.0,99834.0,0.405849]
[1733683560271,0.002,99835.0,99834.0,0.405849]
[1733683560471,0.002,99835.0,99834.0,0.50601477]
[1733683561670,0.047049,99835.0,99834.0,0.50601477]
[1733683561874,0.047049,99835.0,99834.0,0.405849]
[1733683562983,0.045049,99835.0,99834.0,0.406849]
[1733683563572,0.045049,99835.0,99834.0,0.407849]
[1733683563773,0.046049,99835.0,99834.0,0.406849]
[1733683564373,0.046049,99835.0,99834.0,0.3608]
[1733683564777,0.046049,99835.0,99834.0,0.40585]
[1733683565982,0.045049,99835.0,99834.0,0.40585]
[1733683566284,0.047049,99835.0,99834.0,0.04505]
[1733683568380,0.048049,99835.0,99834.0,0.04505]
[1733683571685,0.047049,99835.0,99834.0,0.04505]
[1733683578778,0.09574035,99835.0,99834.0,0.04505]
[1733683581702,0.047049,99835.0,99834.0,0.04505]
[1733683582102,0.19650588,99835.0,99834.0,0.04505]
[1733683585301,0.19450588,99835.0,99834.0,0.04505]
[1733683585502,0.19650588,99835.0,99834.0,0.04505]
[1733683586012,0.047049,99835.0,99834.0,0.04505]
[1733683597021,0.045051,99831.0,99830.0,0.00011686]
[1733683597611,0.19450788,99831.0,99830.0,0.00011686]
[1733683597819,0.045051,99831.0,99830.0,0.00011686]
[1733683598214,0.046051,99831.0,99830.0,0.00011686]
[1733683598712,0.048051,99831.0,99830.0,0.00011686]
[1733683600114,0.05805743,99831.0,99830.0,0.00011686]
[1733683600909,0.28611923,99831.0,99830.0,0.00011686]
[1733683601115,0.10675269,99831.0,99830.0,0.00011686]
[1733683607220,0.10675268,99831.0,99830.0,0.00011686]
[1733683609030,0.17749902,99831.0,99830.0,0.00011686]
[1733683609333,0.17749212,99831.0,99830.0,0.00011686]
[1733683611235,0.05805743,99831.0,99830.0,0.00011686]
[1733683615932,0.10675191,99831.0,99830.0,0.00011686]
[1733683618430,0.05805743,99831.0,99830.0,0.00011686]
[1733683618740,0.10675191,99831.0,99830.0,0.00011686]
[1733683620939,0.10675216,99831.0,99830.0,0.00011686]
[1733683623337,0.2861187,99831.0,99830.0,0.00011686]
[1733683623934,0.05805743,99831.0,99830.0,0.00011686]
[1733683624733,0.003,99831.0,99830.0,0.00011686]
[1733683625032,0.00052001,99835.0,99834.0,0.04505]
[1733683625332,0.045049,99835.0,99834.0,0.34523087]
[1733683625535,0.045049,99835.0,99834.0,0.045049]
[1733683626935,0.046049,99835.0,99834.0,0.045049]
[1733683627839,0.045049,99835.0,99834.0,0.045049]
[1733683628042,0.046049,99835.0,99834.0,0.045049]
[1733683628533,0.045049,99835.0,99834.0,0.045049]
[1733683628836,0.046049,99835.0,99834.0,0.045049]
[1733683630028,0.045049,99835.0,99834.0,0.045049]
[1733683630236,0.046049,99835.0,99834.0,0.045049]
[1733683630538,0.046049,99835.0,99834.0,0.28503355]
[1733683630933,0.16562898,99835.0,99834.0,0.045049]
[1733683631435,0.16662898,99835.0,99834.0,0.045049]
[1733683634333,0.045049,99835.0,99834.0,0.045049]
[1733683634539,0.047049,99835.0,99834.0,0.045049]
[1733683634831,0.045051,99831.0,99830.0,0.00011686]
[1733683635032,0.405851,99831.0,99830.0,0.00011686]
[1733683635234,0.45454497,99831.0,99830.0,0.00011686]
[1733683635645,0.63391151,99831.0,99830.0,0.00011686]
[1733683636132,0.45454497,99831.0,99830.0,0.00011686]
[1733683637033,0.46448215,99831.0,99830.0,0.00011686]
[1733683637436,0.46548215,99831.0,99830.0,0.00011686]
[1733683638036,0.46748215,99831.0,99830.0,0.00011686]
[1733683639139,0.53825297,99831.0,99830.0,0.00011686]
[1733683641046,0.41878818,99831.0,99830.0,0.00011686]
[1733683641345,0.53825297,99831.0,99830.0,0.00011686]
[1733683642042,0.41878818,99831.0,99830.0,0.00011686]
[1733683643539,0.05798818,99831.0,99830.0,0.00011686]
[1733683645934,0.10668458,99831.0,99830.0,0.00011686]
[1733683653547,0.10668543,99831.0,99830.0,0.00011686]
[1733683653947,0.05798818,99831.0,99830.0,0.00011686]
[1733683659145,0.1773576,99831.0,99830.0,0.00011686]
[1733683659345,0.17742194,99831.0,99830.0,0.00011686]
[1733683659746,0.05798818,99831.0,99830.0,0.00011686]
[1733683659945,0.17742194,99831.0,99830.0,0.00011686]
[1733683660749,0.05798818,99831.0,99830.0,0.00011686]
[1733683662651,0.05798818,99831.0,99827.0,0.1799892]
[1733683662652,0.045052,99829.0,99827.0,0.1799892]
[1733683662847,0.01293718,99831.0,99826.0,0.1799892]
[1733683662848,0.045053,99827.0,99826.0,0.1799892]
[1733683663042,0.045054,99825.0,99820.0,0.1799892]
[1733683663253,0.045057,99817.0,99816.0,0.1799892]
[1733683663452,0.045057,99817.0,99806.0,0.67198187]
[1733683663453,0.045058,99815.0,99814.0,0.1799892]
[1733683663746,0.045058,99815.0,99813.0,0.1799892]
[1733683664058,0.045059,99813.0,99811.0,0.1799892]
[1733683664352,0.11951038,99812.0,99810.0,0.00010267]
[1733683664553,0.04506,99811.0,99810.0,0.00010267]
[1733683666159,0.04506,99811.0,99810.0,0.00210267]
[1733683666356,0.04506,99811.0,99810.0,0.00710267]
[1733683666757,0.16457038,99811.0,99810.0,0.00710267]
[1733683667251,0.04506,99811.0,99810.0,0.00710267]
[1733683670955,0.16441545,99811.0,99810.0,0.00710267]
[1733683672366,0.04506,99811.0,99810.0,0.00710267]
[1733683674056,0.11935545,99813.0,99810.0,0.36790267]
[1733683674364,0.045058,99815.0,99810.0,0.36790267]
[1733683674365,0.045058,99815.0,99813.0,0.045059]
[1733683675453,0.045059,99814.0,99813.0,0.045059]